[Event "Pobeskydi 2026"]
[Site "Frydek-Mistek, Czech Republic"]
[Date "2026.04.05"]
[Round "7.1"]
[White "Szumiec, Jan"]
[Black "Gnojek, Petr"]
[Result "0-1"]
[TimeControl "90 min+30s/move"]
[WhiteTitle "-"]
[BlackTitle "-"]
[WhiteFideId "41815661"]
[BlackFideId "371807"]
[WhiteElo "1826"]
[BlackElo "2401"]

1. e4 {[%clk 01:30:59]} {[%emt 00:00:01]} d6 {[%clk 01:30:49]} {[%emt
00:00:11]} 2. d4 {[%clk 01:31:23]} {[%emt 00:00:05]} Nf6 {[%clk 01:31:13]}
{[%emt 00:00:06]} 3. Nc3 {[%clk 01:31:39]} {[%emt 00:00:14]} g6 {[%clk
01:31:31]} {[%emt 00:00:13]} 4. Nf3 {[%clk 01:31:38]} {[%emt 00:00:29]} Bg7
{[%clk 01:31:37]} {[%emt 00:00:26]} 5. Be3 {[%clk 01:31:29]} {[%emt 00:00:40]}
c6 {[%clk 01:31:43]} {[%emt 00:00:24]} 6. Qd2 {[%clk 01:30:55]} {[%emt
00:01:05]} b5 {[%clk 01:30:39]} {[%emt 00:01:34]} 7. Bd3 {[%clk 01:30:00]}
{[%emt 00:01:24]} O-O {[%clk 01:30:02]} {[%emt 00:01:06]} 8. Bh6 {[%clk
01:29:42]} {[%emt 00:00:48]} Bg4 {[%clk 01:20:57]} {[%emt 00:09:35]} 9. h4
{[%clk 01:30:03]} {[%emt 00:00:10]} Bxf3 {[%clk 01:12:38]} {[%emt 00:08:48]} 10.
gxf3 {[%clk 01:30:13]} {[%emt 00:00:19]} Nbd7 {[%clk 01:12:39]} {[%emt
00:00:31]} 11. O-O-O {[%clk 01:28:16]} {[%emt 00:02:26]} e5 {[%clk 01:12:31]}
{[%emt 00:00:40]} 12. h5 {[%clk 01:16:33]} {[%emt 00:12:12]} exd4 {[%clk
01:10:11]} {[%emt 00:02:50]} 13. Bxg7 {[%clk 01:12:58]} {[%emt 00:04:05]} Kxg7
{[%clk 01:10:32]} {[%emt 00:00:08]} 14. hxg6 {[%clk 01:12:36]} {[%emt
00:00:52]} fxg6 {[%clk 01:10:41]} {[%emt 00:00:22]} 15. Qh6+ {[%clk 01:11:49]}
{[%emt 00:01:14]} Kf7 {[%clk 01:08:10]} {[%emt 00:03:03]} 16. Ne2 {[%clk
01:10:40]} {[%emt 00:01:39]} c5 {[%clk 01:07:37]} {[%emt 00:01:04]} 17. Bxb5
{[%clk 01:09:20]} {[%emt 00:01:50]} Ne5 {[%clk 01:07:29]} {[%emt 00:00:39]} 18.
f4 {[%clk 01:04:32]} {[%emt 00:05:17]} Neg4 {[%clk 01:07:19]} {[%emt 00:00:40]}
19. Bc4+ {[%clk 01:01:48]} {[%emt 00:03:15]} d5 {[%clk 01:07:22]} {[%emt
00:00:26]} 20. Bxd5+ {[%clk 01:01:50]} {[%emt 00:00:28]} Qxd5 {[%clk 01:07:43]}
{[%emt 00:00:10]} 21. Qxf8+ {[%clk 01:00:14]} {[%emt 00:02:05]} Rxf8 {[%clk
01:07:57]} {[%emt 00:00:16]} 22. exd5 {[%clk 01:00:37]} {[%emt 00:00:07]} Nxf2
{[%clk 01:08:19]} {[%emt 00:00:07]} 23. c3 {[%clk 00:58:14]} {[%emt 00:02:54]}
Re8 {[%clk 01:02:28]} {[%emt 00:06:20]} 24. cxd4 {[%clk 00:50:27]} {[%emt
00:08:17]} Rxe2 {[%clk 01:02:23]} {[%emt 00:00:35]} 25. Rh2 {[%clk 00:50:29]}
{[%emt 00:00:29]} cxd4 {[%clk 01:02:25]} {[%emt 00:00:28]} 26. Kb1 {[%clk
00:49:19]} {[%emt 00:01:40]} d3 {[%clk 00:58:13]} {[%emt 00:04:42]} 27. Rxd3
{[%clk 00:48:14]} {[%emt 00:01:35]} Re1+ {[%clk 00:58:32]} {[%emt 00:00:11]} 28.
Kc2 {[%clk 00:48:39]} {[%emt 00:00:05]} Nxd3 {[%clk 00:58:56]} {[%emt
00:00:06]} 29. Kxd3 {[%clk 00:49:06]} {[%emt 00:00:03]} Rd1+ {[%clk 00:59:02]}
{[%emt 00:00:24]} 30. Kc4 {[%clk 00:49:29]} {[%emt 00:00:06]} h5 {[%clk
00:57:14]} {[%emt 00:02:18]} 31. b4 {[%clk 00:48:55]} {[%emt 00:01:05]} Nxd5
{[%clk 00:57:13]} {[%emt 00:00:31]} 32. a4 {[%clk 00:49:06]} {[%emt 00:00:18]}
Nxf4 {[%clk 00:56:20]} {[%emt 00:01:25]} 33. a5 {[%clk 00:49:11]} {[%emt
00:00:24]} g5 {[%clk 00:56:21]} {[%emt 00:00:29]} 34. b5 {[%clk 00:49:22]}
{[%emt 00:00:18]} Ke6 {[%clk 00:56:38]} {[%emt 00:00:13]} 35. b6 {[%clk
00:47:02]} {[%emt 00:02:51]} axb6 {[%clk 00:57:02]} {[%emt 00:00:06]} 36. axb6
{[%clk 00:47:17]} {[%emt 00:00:15]} Rb1 {[%clk 00:57:14]} {[%emt 00:00:18]} 37.
Kc5 {[%clk 00:47:41]} {[%emt 00:00:06]} g4 {[%clk 00:57:32]} {[%emt 00:00:11]}
38. Kc6 {[%clk 00:47:13]} {[%emt 00:00:59]} g3 {[%clk 00:57:55]} {[%emt
00:00:07]} 39. Rd2 {[%clk 00:46:07]} {[%emt 00:01:36]} g2 {[%clk 00:58:16]}
{[%emt 00:00:08]} 40. Rd6 {[%clk 00:46:26]} {[%emt 00:00:12]} Kf5 {[%clk
00:58:23]} {[%emt 00:00:22]} 41. Rd1 {[%clk 00:46:24]} {[%emt 00:00:32]} Rxd1
{[%clk 00:58:45]} {[%emt 00:00:09]} 42. b7 {[%clk 00:46:50]} {[%emt 00:00:04]}
Rb1 {[%clk 00:59:00]} {[%emt 00:00:15]} 43. b8=Q {[%clk 00:47:09]} {[%emt
00:00:09]} Rxb8 {[%clk 00:59:24]} {[%emt 00:00:08]} 44. Kc7 {[%clk 00:47:32]}
{[%emt 00:00:07]} g1=Q {[%clk 00:59:41]} {[%emt 00:00:12]} 45. Kxb8 {[%clk
00:47:57]} {[%emt 00:00:05]} Qg7 {[%clk 01:00:05]} {[%emt 00:00:07]} 46. Ka8
{[%clk 00:48:19]} {[%emt 00:00:08]} Nd5 {[%clk 01:00:29]} {[%emt 00:00:05]} 47.
Kb8 {[%clk 00:48:43]} {[%emt 00:00:07]} Qc7+ {[%emt 00:00:19]} 0-1

[Event "Pobeskydi 2026"]
[Site "Frydek-Mistek, Czech Republic"]
[Date "2026.04.05"]
[Round "7.2"]
[White "Plechacek, Matej"]
[Black "Walek, Petr"]
[Result "0-1"]
[TimeControl "90 min+30s/move"]
[WhiteTitle "-"]
[BlackTitle "-"]
[WhiteFideId "23763523"]
[BlackFideId "339393"]
[WhiteElo "1801"]
[BlackElo "2304"]

1. d4 {[%clk 01:30:59]} f5 {[%clk 01:30:48]} {[%emt 00:00:12]} 2. Qd3 {[%clk
01:31:20]} {[%emt 00:00:09]} e6 {[%clk 01:27:49]} {[%emt 00:03:29]} 3. g4
{[%clk 01:31:46]} {[%emt 00:00:04]} d5 {[%clk 01:09:00]} {[%emt 00:19:19]} 4.
gxf5 {[%clk 01:31:32]} {[%emt 00:00:43]} exf5 {[%clk 01:09:22]} {[%emt
00:00:08]} 5. Nf3 {[%clk 01:31:14]} {[%emt 00:00:48]} Nf6 {[%clk 00:56:59]}
{[%emt 00:12:53]} 6. Bg5 {[%clk 01:31:36]} {[%emt 00:00:08]} Be7 {[%clk
00:55:18]} {[%emt 00:02:11]} 7. c4 {[%clk 01:31:29]} {[%emt 00:00:37]} c6
{[%clk 00:36:48]} {[%emt 00:18:59]} 8. Nc3 {[%clk 01:31:37]} {[%emt 00:00:23]}
Be6 {[%clk 00:36:08]} {[%emt 00:01:10]} 9. Bxf6 {[%clk 01:25:12]} {[%emt
00:06:54]} Bxf6 {[%clk 00:36:26]} {[%emt 00:00:12]} 10. cxd5 {[%clk 01:25:33]}
{[%emt 00:00:10]} cxd5 {[%clk 00:36:12]} {[%emt 00:00:43]} 11. Bg2 {[%clk
01:23:53]} {[%emt 00:02:10]} Nc6 {[%clk 00:34:32]} {[%emt 00:02:11]} 12. e3
{[%clk 01:23:07]} {[%emt 00:01:16]} Qd7 {[%clk 00:32:31]} {[%emt 00:02:31]} 13.
a3 {[%clk 01:22:45]} {[%emt 00:00:51]} O-O {[%clk 00:30:40]} {[%emt 00:02:22]}
14. Ne2 {[%clk 01:19:40]} {[%emt 00:03:35]} Rac8 {[%clk 00:25:11]} {[%emt
00:05:59]} 15. Nf4 {[%clk 01:18:19]} {[%emt 00:01:51]} Rfe8 {[%clk 00:21:04]}
{[%emt 00:04:37]} 16. h4 {[%clk 01:16:35]} {[%emt 00:02:13]} Bf7 {[%clk
00:18:58]} {[%emt 00:02:37]} 17. Kf1 {[%clk 01:15:57]} {[%emt 00:01:09]} g6
{[%clk 00:15:05]} {[%emt 00:04:23]} 18. Nd2 {[%clk 01:04:10]} {[%emt 00:12:16]}
Na5 {[%clk 00:12:55]} {[%emt 00:02:40]} 19. Nb3 {[%clk 01:00:38]} {[%emt
00:04:03]} Nxb3 {[%clk 00:11:39]} {[%emt 00:01:46]} 20. Qxb3 {[%clk 01:01:01]}
{[%emt 00:00:07]} Rc4 {[%clk 00:12:06]} {[%emt 00:00:03]} 21. Bf3 {[%clk
01:00:39]} {[%emt 00:00:51]} Rec8 {[%clk 00:09:22]} {[%emt 00:03:14]} 22. Kg2
{[%clk 01:00:58]} {[%emt 00:00:12]} b6 {[%clk 00:07:21]} {[%emt 00:02:31]} 23.
Be2 {[%clk 01:00:59]} {[%emt 00:00:28]} Rc2 {[%clk 00:05:34]} {[%emt 00:02:17]}
24. Bd3 {[%clk 01:00:10]} {[%emt 00:01:20]} R2c7 {[%clk 00:05:51]} {[%emt
00:00:14]} 25. Ba6 {[%clk 00:59:36]} {[%emt 00:01:03]} Rd8 {[%clk 00:05:47]}
{[%emt 00:00:33]} 26. Be2 {[%clk 00:59:07]} {[%emt 00:00:59]} Qd6 {[%clk
00:05:16]} {[%emt 00:01:02]} 27. Bf3 {[%clk 00:59:17]} {[%emt 00:00:20]} h6
{[%clk 00:03:35]} {[%emt 00:02:10]} 28. Qd3 {[%clk 00:58:50]} {[%emt 00:00:58]}
Rc4 {[%clk 00:02:38]} {[%emt 00:01:27]} 29. Ne2 {[%clk 00:55:41]} {[%emt
00:03:38]} Qd7 {[%clk 00:02:30]} {[%emt 00:00:39]} 30. Ng3 {[%clk 00:55:29]}
{[%emt 00:00:42]} f4 {[%clk 00:02:28]} {[%emt 00:00:31]} 31. Ne2 {[%clk
00:55:35]} {[%emt 00:00:24]} fxe3 {[%clk 00:02:36]} {[%emt 00:00:23]} 32. fxe3
{[%clk 00:56:04]} {[%emt 00:00:01]} Rdc8 {[%clk 00:02:13]} {[%emt 00:00:53]} 33.
Nf4 {[%clk 00:55:28]} {[%emt 00:01:05]} Rc2+ {[%clk 00:02:34]} {[%emt
00:00:09]} 34. Kg3 {[%clk 00:55:24]} {[%emt 00:00:35]} Qd6 {[%clk 00:01:52]}
{[%emt 00:01:13]} 35. Bd1 {[%clk 00:52:24]} {[%emt 00:03:29]} Rxb2 {[%clk
00:01:41]} {[%emt 00:00:41]} 36. Kf3 {[%clk 00:51:59]} {[%emt 00:00:54]} Bg7
{[%clk 00:01:33]} {[%emt 00:00:39]} 37. Rg1 {[%clk 00:51:56]} {[%emt 00:00:33]}
Rh2 {[%clk 00:01:08]} {[%emt 00:00:54]} 38. Kg3 {[%clk 00:51:49]} {[%emt
00:00:38]} Rb2 {[%clk 00:01:10]} {[%emt 00:00:27]} 39. Kf3 {[%clk 00:52:18]}
{[%emt 00:00:02]} Qf6 {[%clk 00:01:17]} {[%emt 00:00:23]} 40. Rb1 {[%clk
00:51:27]} {[%emt 00:01:21]} Rxb1 {[%clk 00:01:16]} {[%emt 00:00:31]} 41. Qxb1
{[%clk 00:51:55]} {[%emt 00:00:01]} g5 {[%clk 00:00:56]} {[%emt 00:00:51]} 42.
hxg5 {[%clk 00:51:57]} {[%emt 00:00:28]} hxg5 {[%clk 00:01:22]} {[%emt
00:00:03]} 43. Bc2 {[%clk 00:52:11]} {[%emt 00:00:16]} Bh5+ {[%clk 00:00:39]}
{[%emt 00:01:14]} 44. Kf2 {[%clk 00:51:52]} {[%emt 00:00:48]} gxf4 {[%clk
00:01:04]} {[%emt 00:00:06]} 45. Bf5 {[%clk 00:51:28]} {[%emt 00:00:54]} fxe3+
{[%clk 00:01:04]} {[%emt 00:00:30]} 46. Kf1 {[%clk 00:51:35]} {[%emt 00:00:23]}
Rf8 {[%clk 00:00:53]} {[%emt 00:00:41]} 0-1

[Event "Pobeskydi 2026"]
[Site "Frydek-Mistek, Czech Republic"]
[Date "2026.04.05"]
[Round "7.3"]
[White "Karas, Marek"]
[Black "Zemkova, Klara"]
[Result "1-0"]
[TimeControl "90 min+30s/move"]
[WhiteTitle "-"]
[BlackTitle "-"]
[WhiteFideId "14928558"]
[BlackFideId "344117"]
[WhiteElo "2232"]
[BlackElo "1888"]

1. d4 {[%clk 01:30:58]} f5 {[%clk 01:29:36]} {[%emt 00:01:26]} 2. Qd3 {[%clk
01:31:26]} d5 {[%clk 01:18:46]} {[%emt 00:11:21]} 3. Nf3 {[%clk 01:31:34]}
{[%emt 00:00:22]} Nf6 {[%clk 01:18:55]} {[%emt 00:00:21]} 4. c4 {[%clk
01:31:53]} {[%emt 00:00:11]} e6 {[%clk 01:14:13]} {[%emt 00:05:12]} 5. Bf4
{[%clk 01:32:09]} {[%emt 00:00:13]} Bd6 {[%clk 01:08:37]} {[%emt 00:06:07]} 6.
g3 {[%clk 01:27:28]} {[%emt 00:05:10]} O-O {[%clk 01:04:36]} {[%emt 00:04:32]}
7. Bg2 {[%clk 01:23:47]} {[%emt 00:04:11]} Nbd7 {[%clk 00:58:37]} {[%emt
00:06:30]} 8. Bxd6 {[%clk 01:18:38]} {[%emt 00:05:38]} cxd6 {[%clk 00:57:54]}
{[%emt 00:01:13]} 9. cxd5 {[%clk 01:17:38]} {[%emt 00:01:30]} Nxd5 {[%clk
00:58:08]} {[%emt 00:00:17]} 10. O-O {[%clk 01:16:56]} {[%emt 00:01:10]} N7f6
{[%clk 00:53:39]} {[%emt 00:05:00]} 11. Nc3 {[%clk 01:15:57]} {[%emt 00:01:29]}
Bd7 {[%clk 00:52:55]} {[%emt 00:01:15]} 12. Ng5 {[%clk 01:07:21]} {[%emt
00:09:04]} Nxc3 {[%clk 00:44:55]} {[%emt 00:08:31]} 13. bxc3 {[%clk 01:05:46]}
{[%emt 00:02:05]} h6 {[%clk 00:43:47]} {[%emt 00:01:38]} 14. Nf3 {[%clk
01:05:24]} {[%emt 00:00:50]} Bc6 {[%clk 00:42:04]} {[%emt 00:02:15]} 15. c4
{[%clk 01:05:12]} {[%emt 00:00:42]} Be4 {[%clk 00:35:26]} {[%emt 00:07:09]} 16.
Qe3 {[%clk 01:02:49]} {[%emt 00:02:50]} Ng4 {[%clk 00:32:25]} {[%emt 00:03:33]}
17. Qb3 {[%clk 01:02:46]} {[%emt 00:00:31]} b6 {[%clk 00:31:55]} {[%emt
00:01:03]} 18. Bh3 {[%clk 00:54:33]} {[%emt 00:08:41]} Qe8 {[%clk 00:25:40]}
{[%emt 00:06:46]} 19. Nd2 {[%clk 00:53:27]} {[%emt 00:01:34]} Bb7 {[%clk
00:24:50]} {[%emt 00:01:18]} 20. Bg2 {[%clk 00:50:49]} {[%emt 00:03:12]} Bxg2
{[%clk 00:24:30]} {[%emt 00:00:50]} 21. Kxg2 {[%clk 00:51:17]} {[%emt
00:00:01]} Qh5 {[%clk 00:24:41]} {[%emt 00:00:19]} 22. Nf3 {[%clk 00:47:30]}
{[%emt 00:04:16]} Kh8 {[%clk 00:15:00]} {[%emt 00:10:13]} 23. Qa3 {[%clk
00:44:19]} {[%emt 00:03:41]} e5 {[%clk 00:13:39]} {[%emt 00:01:51]} 24. h3
{[%clk 00:43:50]} {[%emt 00:00:57]} e4 {[%clk 00:13:43]} {[%emt 00:00:26]} 25.
Ng1 {[%clk 00:43:50]} {[%emt 00:00:29]} Nf6 {[%clk 00:13:47]} {[%emt 00:00:27]}
26. Qxd6 {[%clk 00:40:34]} {[%emt 00:03:45]} Rad8 {[%clk 00:14:13]} {[%emt
00:00:05]} 27. Qa3 {[%clk 00:40:35]} {[%emt 00:00:29]} Rde8 {[%clk 00:14:09]}
{[%emt 00:00:34]} 28. f4 {[%clk 00:37:11]} {[%emt 00:03:53]} g5 {[%clk
00:11:29]} {[%emt 00:03:11]} 29. Qe3 {[%clk 00:32:15]} {[%emt 00:05:25]} Rg8
{[%clk 00:10:47]} {[%emt 00:01:13]} 30. Rf2 {[%clk 00:30:24]} {[%emt 00:02:20]}
Re7 {[%clk 00:09:29]} {[%emt 00:01:48]} 31. a4 {[%clk 00:28:07]} {[%emt
00:02:48]} gxf4 {[%clk 00:08:17]} {[%emt 00:01:42]} 32. Qxf4 {[%clk 00:27:56]}
{[%emt 00:00:40]} Reg7 {[%clk 00:05:48]} {[%emt 00:02:59]} 33. Ra3 {[%clk
00:28:11]} {[%emt 00:00:15]} e3 {[%clk 00:04:58]} {[%emt 00:01:20]} 34. Rxe3
{[%clk 00:27:26]} {[%emt 00:01:14]} Ne4 {[%clk 00:05:23]} {[%emt 00:00:06]} 35.
Rff3 {[%clk 00:27:28]} {[%emt 00:00:27]} Nd2 {[%clk 00:04:46]} {[%emt
00:01:09]} 36. Re6 {[%clk 00:27:28]} {[%emt 00:00:29]} Nxf3 {[%clk 00:04:31]}
{[%emt 00:00:45]} 37. Rxh6+ {[%clk 00:27:51]} {[%emt 00:00:07]} Qxh6 {[%clk
00:04:20]} {[%emt 00:00:40]} 38. Qxh6+ {[%clk 00:28:19]} {[%emt 00:00:02]} Rh7
{[%clk 00:04:45]} {[%emt 00:00:06]} 39. Qf6+ {[%clk 00:28:38]} {[%emt
00:00:11]} 1-0

[Event "Pobeskydi 2026"]
[Site "Frydek-Mistek, Czech Republic"]
[Date "2026.04.05"]
[Round "7.4"]
[White "Durana, Jonas"]
[Black "Szczygiel, Filip"]
[Result "0-1"]
[TimeControl "90 min+30s/move"]
[WhiteTitle "-"]
[BlackTitle "-"]
[WhiteFideId "73619663"]
[BlackFideId "41897307"]
[WhiteElo "2183"]
[BlackElo "1809"]

1. e4 {[%clk 01:30:59]} {[%emt 00:33:43]} g6 {[%clk 01:30:54]} {[%emt
00:00:07]} 2. d4 {[%clk 01:31:22]} {[%emt 00:00:06]} Bg7 {[%clk 01:31:16]}
{[%emt 00:00:08]} 3. Nf3 {[%clk 01:29:49]} {[%emt 00:02:03]} d6 {[%clk
01:31:39]} {[%emt 00:00:07]} 4. Nc3 {[%clk 01:30:13]} {[%emt 00:00:05]} a6
{[%clk 01:31:17]} {[%emt 00:00:53]} 5. a4 {[%clk 01:30:28]} {[%emt 00:00:15]}
Nf6 {[%clk 01:25:47]} {[%emt 00:05:58]} 6. Be3 {[%clk 01:28:06]} {[%emt
00:02:53]} O-O {[%clk 01:24:00]} {[%emt 00:02:18]} 7. h3 {[%clk 01:27:21]}
{[%emt 00:01:15]} Nc6 {[%clk 01:21:52]} {[%emt 00:02:38]} 8. Be2 {[%clk
01:25:36]} {[%emt 00:02:14]} e5 {[%clk 01:16:51]} {[%emt 00:05:32]} 9. d5
{[%clk 01:22:00]} {[%emt 00:04:05]} Ne7 {[%clk 01:15:38]} {[%emt 00:01:43]} 10.
Qd2 {[%clk 01:22:11]} {[%emt 00:00:19]} Nxe4 {[%clk 01:04:38]} {[%emt
00:11:30]} 11. Nxe4 {[%clk 01:22:30]} {[%emt 00:00:12]} f5 {[%clk 01:05:03]}
{[%emt 00:00:05]} 12. g4 {[%clk 01:10:55]} {[%emt 00:12:05]} f4 {[%clk
01:00:22]} {[%emt 00:05:11]} 13. Bb6 {[%clk 01:07:03]} {[%emt 00:04:22]} cxb6
{[%clk 00:59:38]} {[%emt 00:01:14]} 14. Qb4 {[%clk 01:07:28]} {[%emt 00:00:04]}
Qc7 {[%clk 00:42:01]} {[%emt 00:18:08]} 15. O-O-O {[%clk 00:56:23]} {[%emt
00:11:34]} Rd8 {[%clk 00:35:01]} {[%emt 00:07:31]} 16. b3 {[%clk 00:45:10]}
{[%emt 00:11:43]} b5 {[%clk 00:28:35]} {[%emt 00:06:56]} 17. axb5 {[%clk
00:44:16]} {[%emt 00:01:24]} axb5 {[%clk 00:27:58]} {[%emt 00:01:07]} 18. Qxb5
{[%clk 00:38:03]} {[%emt 00:06:43]} Bf5 {[%clk 00:23:46]} {[%emt 00:04:42]} 19.
Nfg5 {[%clk 00:27:25]} {[%emt 00:11:07]} f3 {[%clk 00:15:55]} {[%emt 00:08:22]}
20. Bc4 {[%clk 00:25:46]} {[%emt 00:02:08]} Bh6 {[%clk 00:15:37]} {[%emt
00:00:49]} 21. gxf5 {[%clk 00:25:34]} {[%emt 00:00:42]} Ra5 {[%clk 00:05:54]}
{[%emt 00:10:14]} 22. Qb4 {[%clk 00:23:50]} {[%emt 00:02:13]} b5 {[%clk
00:04:41]} {[%emt 00:01:43]} 23. f6 {[%clk 00:17:28]} {[%emt 00:06:52]} Nf5
{[%clk 00:02:03]} {[%emt 00:03:08]} 24. Bd3 {[%clk 00:16:24]} {[%emt 00:01:34]}
Qa7 {[%clk 00:01:53]} {[%emt 00:00:39]} 25. h4 {[%clk 00:13:38]} {[%emt
00:03:16]} Rc8 {[%clk 00:02:02]} {[%emt 00:00:21]} 26. f7+ {[%clk 00:12:55]}
{[%emt 00:01:13]} Kf8 {[%clk 00:01:40]} {[%emt 00:00:53]} 27. Nxd6 {[%clk
00:11:58]} {[%emt 00:01:26]} Ra1+ {[%clk 00:01:58]} {[%emt 00:00:12]} 28. Kd2
{[%clk 00:12:23]} {[%emt 00:00:05]} Qxf2+ {[%clk 00:02:21]} {[%emt 00:00:06]}
0-1

[Event "Pobeskydi 2026"]
[Site "Frydek-Mistek, Czech Republic"]
[Date "2026.04.05"]
[Round "7.5"]
[White "Vanek, Martin"]
[Black "Boff, Ondrej"]
[Result "1-0"]
[TimeControl "90 min+30s/move"]
[WhiteTitle "-"]
[BlackTitle "-"]
[WhiteFideId "23769238"]
[BlackFideId "23733950"]
[WhiteElo "1905"]
[BlackElo "2101"]

1. d4 {[%clk 01:30:57]} {[%emt 00:00:02]} Nf6 {[%clk 01:30:28]} {[%emt
00:00:33]} 2. c4 {[%clk 01:31:22]} {[%emt 00:00:06]} c5 {[%clk 01:30:42]}
{[%emt 00:00:15]} 3. d5 {[%clk 01:31:44]} {[%emt 00:00:09]} b5 {[%clk
01:30:43]} {[%emt 00:00:28]} 4. cxb5 {[%clk 01:32:05]} {[%emt 00:00:10]} a6
{[%clk 01:30:29]} {[%emt 00:00:43]} 5. e3 {[%clk 01:31:33]} {[%emt 00:01:02]}
axb5 {[%clk 01:29:48]} {[%emt 00:01:12]} 6. Bxb5 {[%clk 01:31:47]} {[%emt
00:00:15]} Qa5+ {[%clk 01:29:45]} {[%emt 00:00:33]} 7. Nc3 {[%clk 01:32:07]}
{[%emt 00:00:10]} Bb7 {[%clk 01:29:52]} {[%emt 00:00:22]} 8. Bd2 {[%clk
01:32:23]} {[%emt 00:00:14]} Qb6 {[%clk 01:29:48]} {[%emt 00:00:35]} 9. Nf3
{[%clk 01:30:20]} {[%emt 00:02:33]} Nxd5 {[%clk 01:21:42]} {[%emt 00:08:36]} 10.
a4 {[%clk 01:30:31]} {[%emt 00:00:19]} Nxc3 {[%clk 01:14:25]} {[%emt 00:07:46]}
11. Bxc3 {[%clk 01:27:45]} {[%emt 00:03:17]} Bc6 {[%clk 01:10:08]} {[%emt
00:04:47]} 12. Bxc6 {[%clk 01:15:32]} {[%emt 00:12:44]} Nxc6 {[%clk 01:10:07]}
{[%emt 00:00:31]} 13. O-O {[%clk 01:13:29]} {[%emt 00:02:33]} d6 {[%clk
01:01:56]} {[%emt 00:08:41]} 14. e4 {[%clk 01:03:09]} {[%emt 00:10:50]} e6
{[%clk 00:58:38]} {[%emt 00:03:47]} 15. Nd2 {[%clk 00:57:13]} {[%emt 00:06:26]}
Na5 {[%clk 00:51:40]} {[%emt 00:07:28]} 16. f4 {[%clk 00:50:13]} {[%emt
00:07:31]} O-O-O {[%clk 00:34:34]} {[%emt 00:17:35]} 17. Qc2 {[%clk 00:38:07]}
{[%emt 00:12:36]} Rd7 {[%clk 00:27:06]} {[%emt 00:07:58]} 18. Kh1 {[%clk
00:24:47]} {[%emt 00:13:50]} Rc7 {[%clk 00:25:51]} {[%emt 00:01:45]} 19. Rfb1
{[%clk 00:23:30]} {[%emt 00:01:48]} f6 {[%clk 00:21:47]} {[%emt 00:04:33]} 20.
Qd3 {[%clk 00:20:01]} {[%emt 00:03:59]} d5 {[%clk 00:10:51]} {[%emt 00:11:26]}
21. exd5 {[%clk 00:16:56]} {[%emt 00:03:35]} exd5 {[%clk 00:10:32]} {[%emt
00:00:48]} 22. Qxd5 {[%clk 00:16:29]} {[%emt 00:00:58]} Be7 {[%clk 00:10:32]}
{[%emt 00:00:30]} 23. Qa8+ {[%clk 00:16:19]} {[%emt 00:00:40]} 1-0